Cogmind - Beta 13 @@@ ROGUE MODE // 2024.04.16 @ 16:31:13 Player: mewcatx Result: Destroyed by S-10 Pest with Light Assault Rifle Performance ------------- Evolutions (2) 1000 Regions Visited (5) 1000 Robots Destroyed (36) 180 Value Destroyed (860) 860 Prototype IDs (1) 20 Alien Tech Used (0) 0 Bonus (683) 683 TOTAL SCORE: 3743 Bonus ------- Entered Garrisons 200 Used RIF Installer 500 Friendly Fire -17 Cogmind --------- Core Integrity 0/550 Matter 300/300 Energy 100/100 System Corruption 0% Temperature Cool (0) Movement Core (50) Location -8/Garrison Parts ------- > --- POWER (1) -------- (None) > --- PROPULSION (2) --- (None) > --- UTILITY (5) ------ (None) > --- WEAPON (3) ------- (None) > --- INVENTORY (5) ---- Medium Matter Pod (100) Peak State ------------ > --- POWER ------------ Improved Ion Engine > --- PROPULSION ------- Light Treads Light Treads > --- UTILITY ---------- Large Storage Unit Subdweller Optics Signal Interpreter Scrap Shield > --- WEAPON ----------- Subdweller Laser Advanced Beam Cannon Subdweller Machine Gun > --- INVENTORY -------- Ion Engine Light Treads Light Treads Medium Matter Pod Armor Integrity Analyzer Light Armor Plating Advanced Beam Cannon Advanced Beam Cannon Assault Rifle Datajack Hammer [Rating: 20] Favorites ----------- Power Light Nuclear Core Engine Ion Engine Power Core Light Nuclear Core Propulsion Light Treads Treads Light Treads Leg Aluminum Leg Utility Signal Interpreter Device Subdweller Optics Storage Large Storage Unit Processor Signal Interpreter Protection Scrap Shield Weapon Assault Rifle Energy Gun Subdweller Laser Energy Cannon Advanced Beam Cannon Ballistic Gun Assault Rifle Special Melee Weapon Datajack Build | -11 -10 -10 -10 -8 -8 ------- Run | Yrd Mat Min Sub Mat Gar Slots Evolved 4 | . . . . 4 . Power . | . . . . . . Propulsion . | . . . . . . Utility 3 | . . . . 3 . Weapon 1 | . . . . 1 . Parts Attached 42 | 8 16 1 2 3 12 Power 7 | 1 2 1 . . 3 Engine 6 | 1 1 1 . . 3 Core 1 | . 1 . . . . Reactor . | . . . . . . Propulsion 16 | 4 9 . 1 . 2 Treads 9 | 2 4 . 1 . 2 Leg 7 | 2 5 . . . . Wheel . | . . . . . . Hover . | . . . . . . Flight . | . . . . . . Utility 9 | 1 4 . . 2 2 Device 2 | . 1 . . 1 . Storage 3 | 1 2 . . . . Processor 2 | . 1 . . . 1 Hackware . | . . . . . . Protection 2 | . . . . 1 1 Artifact . | . . . . . . Weapon 10 | 2 1 . 1 1 5 Energy Gun 1 | . . . . 1 . Energy Cannon 3 | . 1 . . . 2 Ballistic Gun 5 | 2 . . 1 . 2 Ballistic Cannon . | . . . . . . Launcher . | . . . . . . Special Weapon . | . . . . . . Impact Weapon . | . . . . . . Slashing Weapon . | . . . . . . Piercing Weapon . | . . . . . . Special Melee Weapon 1 | . . . . . 1 Unidentified Prototypes 1 | . 1 . . . . Parts Lost 12 | . . . . . 12 Power 2 | . . . . . 2 Propulsion 3 | . . . . . 3 Utility 2 | . . . . . 2 Weapon 5 | . . . . . 5 Highest Loss Streak 6 | . . . . . 6 To Critical Strikes . | . . . . . . Average Slot Usage (%) 94 | . 96 100 100 87 79 Engine 7 | . 8 4 14 9 7 Core 5 | . 5 9 . . . Treads 19 | . 12 28 28 18 15 Leg 6 | . 15 . . . . Device 2 | . 3 . . 9 7 Storage 14 | . 17 14 14 9 7 Processor 8 | . 3 14 14 9 8 Protection 1 | . . . . 9 7 Energy Gun 1 | . . . . 6 7 Energy Cannon 10 | . 7 14 14 9 9 Ballistic Gun 15 | . 20 14 14 9 3 Naked Turns 43 | . . . . . 43 Heaviest Build 59 | 11 31 33 35 59 59 Greatest Support 40 | 40 40 40 40 40 40 Greatest Overweight (x) 3 | 1 . . . 1 3 Average Overweight (x) . | . . . . 1 . Largest Inventory Capacity 15 | 8 15 15 15 15 15 Average Capacity 12 | 6 9 15 15 15 13 Most Carried 15 | 4 12 15 15 14 12 Average Carried 10 | 2 8 13 14 11 10 Final Capacity 15 | 8 15 15 15 15 5 Final Carried 15 | 4 12 15 15 11 1 Class Distribution -------------------- 73% | Mutant 12% | Scavenger-Mutant 7% | Subdweller-Mutant 3% | Subdweller-Tank Dominant Class ---------------- Mutant | -10/Materials Mutant | -10/Mines Mutant | -10/Subcaves Subdweller-Tank | -8/Materials Subdweller-Mutant | -8/Garrison Resources | -11 -10 -10 -10 -8 -8 ----------- Run | Yrd Mat Min Sub Mat Gar Matter Collected 929 | 258 463 19 35 . 154 Remotely . | . . . . . . Salvage Created 1222 | . 673 78 95 . 376 Parts 82 | . 46 2 4 . 30 Haulers Intercepted 1 | . 1 . . . . Recyclers Shooed 2 | . 2 . . . . Parts Field Recycled . | . . . . . . Retrieved Matter . | . . . . . . Parts Self-Destructed 6 | . . . 6 . . Prevented . | . . . . . . Kills | -11 -10 -10 -10 -8 -8 ------- Run | Yrd Mat Min Sub Mat Gar Combat Hostiles Destroyed 30 | . 12 . 3 . 15 Guns 15 | . 9 . 1 . 5 Cannons 15 | . 3 . 2 . 10 Classes Destroyed 9 | . 6 . 1 . 2 Hauler 1 | . 1 . . . . Recycler 2 | . 1 1 . . . Operator 2 | . 2 . . . . Watcher 1 | . 1 . . . . Swarmer 14 | . 3 . . . 11 Grunt 11 | . 9 . . . 2 Sentry 1 | . . . . . 1 Specialist 1 | . . . . . 1 Subdweller 3 | . . . 3 . . Best Kill Streak 4 | . 3 1 3 . 4 Combat Bots Only 4 | . 3 . 3 . 4 Max Kills in Single Turn 1 | . 1 1 1 . 1 Gunslinging . | . . . . . . Exploded . | . . . . . . Melee . | . . . . . . Uniques/NPCs Destroyed . | . . . . . . Combat | -11 -10 -10 -10 -8 -8 -------- Run | Yrd Mat Min Sub Mat Gar Hostile Shots Fired 328 | . 46 . 15 . 267 Missed 98 | . 11 . 5 . 82 Damage Taken 2633 | . 425 . 406 . 1802 Core 773 | . 134 . 87 . 552 Absorbed by Shields 34 | . . . . . 34 Core Remaining (%) 55 | 100 . . 11 . . Volleys Fired 99 | . 53 3 8 . 35 Largest 3 | . 2 2 2 . 3 Hottest 158 | . 88 88 98 . 158 Shots Fired 200 | . 106 6 16 . 72 Gun 140 | . 90 3 8 . 39 Cannon 60 | . 16 3 8 . 33 Launcher . | . . . . . . Special . | . . . . . . Kinetic 119 | . 90 3 8 . 18 Thermal 81 | . 16 3 8 . 54 Explosive . | . . . . . . Electromagnetic . | . . . . . . Robot Hit Streak 14 | . 14 3 8 . 8 Robot Miss Streak 5 | . 3 3 2 . 5 Penetration Max . | . . . . . . Secondary Targets 1 | . . . . . 1 Max Gunslinging Chain 1 | . . . . . 1 Shots Hit Robots 124 | . 68 3 11 . 42 Core Hits 55 | . 29 3 5 . 18 Critical Kills . | . . . . . . Critical Parts Destroyed . | . . . . . . Critical Strikes 1 | . . . . . 1 Destroy 1 | . . . . . 1 Melee Attacks 2 | . . . . . 2 Impact . | . . . . . . Slashing . | . . . . . . Piercing . | . . . . . . Sneak Attacks . | . . . . . . Combat Hostiles . | . . . . . . Follow-up Attacks . | . . . . . . Damage Inflicted 1947 | 2 851 77 238 . 779 Guns 1059 | . 609 27 116 . 307 Cannons 860 | . 224 42 122 . 472 Explosions . | . . . . . . Melee . | . . . . . . Ramming 28 | 2 18 8 . . . Kinetic 851 | . 609 27 116 . 99 Thermal 1068 | . 224 42 122 . 680 Explosive . | . . . . . . Electromagnetic . | . . . . . . Impact . | . . . . . . Slashing . | . . . . . . Piercing . | . . . . . . Highest Corruption . | . . . . . . Average Corruption . | . . . . . . Corruption Purged . | . . . . . . Corruption Blocked . | . . . . . . Overload Shots . | . . . . . . Overflow Damage 15 | . 12 . . . 3 Projectiles 15 | . 12 . . . 3 Explosions . | . . . . . . Melee . | . . . . . . Knockbacks . | . . . . . . Impact . | . . . . . . Kinetic . | . . . . . . Secondary . | . . . . . . Self-Inflicted Damage . | . . . . . . Shots . | . . . . . . Rammed 2 | . . 1 . . 1 Targets Rammed 9 | 1 6 1 . . 1 Kicked 7 | 1 6 . . . . Crushed . | . . . . . . Highest Temperature 339 | . 150 60 . . 339 Average Temperature 100 | . 41 28 . . 144 Received Heat Transfer 387 | . 231 . 21 . 135 Effects 9 | . . . . . 9 Shutdowns 1 | . . . . . 1 Interference 7 | . . . . . 7 Short Circuit 1 | . . . . . 1 Siege Activations . | . . . . . . Robots Corrupted . | . . . . . . Combat Hostiles . | . . . . . . Parts Fried . | . . . . . . Impact Corruptions . | . . . . . . Robots Melted . | . . . . . . Combat Hostiles . | . . . . . . Parts Melted 1 | . . . . . 1 Heat Transferred 1747 | . 407 74 222 . 1044 Parts Sabotaged . | . . . . . . Parts Stolen . | . . . . . . Parts Stripped . | . . . . . . Power Chain Reactions . | . . . . . . Alert | -11 -10 -10 -10 -8 -8 ------- Run | Yrd Mat Min Sub Mat Gar Peak Influence 282 | . 267 7 . . 282 Initial 7 | . . 7 . . 2 Average 58 | . 83 3 . . 117 Maximum Alert Level 1 | . 1 . . . 1 Low Security (%) 94 | 100 92 100 . 100 84 Level 1 5 | . 7 . . . 15 Level 2 . | . . . . . . Level 3 . | . . . . . . Level 4 . | . . . . . . Level 5 . | . . . . . . High Security . | . . . . . . Max Security . | . . . . . . Squads Dispatched 2 | . 2 . . . . Investigation 1 | . 1 . . . . Extermination . | . . . . . . Reinforcement 1 | . 1 . . . . Assault . | . . . . . . Garrison . | . . . . . . Intercept . | . . . . . . Searches Triggered . | . . . . . . Construction Impeded . | . . . . . . Haulers Reinforced . | . . . . . . Active Scanning Responses . | . . . . . . Cargo Convoy Interrupts . | . . . . . . Stealth | -11 -10 -10 -10 -8 -8 --------- Run | Yrd Mat Min Sub Mat Gar Distress Signals 5 | . 5 . . . . Communications Jammed . | . . . . . . Distress Signals . | . . . . . . Times Spotted 63 | . 29 2 9 . 23 Peak Tracking Total 10 | . 6 2 7 . 10 Tactical Retreats 6 | . 4 . . . 2 Traps | -11 -10 -10 -10 -8 -8 ------- Run | Yrd Mat Min Sub Mat Gar Traps Triggered 3 | . 2 . . . 1 Indirectly . | . . . . . . Trap Hack Attempts . | . . . . . . Triggered . | . . . . . . Disarmed . | . . . . . . Reprogrammed . | . . . . . . Reused . | . . . . . . Traps Extracted . | . . . . . . Installed . | . . . . . . Triggered . | . . . . . . Machines | -11 -10 -10 -10 -8 -8 ---------- Run | Yrd Mat Min Sub Mat Gar Machines Disabled 1 | . 1 . . . . Max in Single Turn 1 | . 1 . . . . Machines Repaired . | . . . . . . Machines Dismantled . | . . . . . . Machines Sabotaged . | . . . . . . Overloaded Fab Kills . | . . . . . . Hacking | -11 -10 -10 -10 -8 -8 --------- Run | Yrd Mat Min Sub Mat Gar Machines Accessed 5 | . 4 . . 1 . Terminals 4 | . 4 . . . . Fabricators . | . . . . . . Repair Stations . | . . . . . . Recycling Units . | . . . . . . Scanalyzers . | . . . . . . Garrison Access 1 | . . . . 1 . Total Hacks 14 | . 13 . . 1 . Successful 8 | . 7 . . 1 . Failed 6 | . 6 . . . . Catastrophic . | . . . . . . Database Lockouts . | . . . . . . Manual 6 | . 6 . . . . Terminals 13 | . 13 . . . . Fabricators . | . . . . . . Repair Stations . | . . . . . . Recycling Units . | . . . . . . Scanalyzers . | . . . . . . Garrison Access 1 | . . . . 1 . Terminal Hacks 7 | . 7 . . . . Record 4 | . 4 . . . . Branch Access Points 1 | . 1 . . . . Terminal Index 1 | . 1 . . . . Alert Level 1 | . 1 . . . . Fabricator Hacks . | . . . . . . Repair Station Hacks . | . . . . . . Recycling Unit Hacks . | . . . . . . Scanalyzer . | . . . . . . Garrison Access Hacks 1 | . . . . 1 . Unlock Access 1 | . . . . 1 . Unauthorized Hacks . | . . . . . . Terminals . | . . . . . . Fabricators . | . . . . . . Repair Stations . | . . . . . . Recycling Units . | . . . . . . Scanalyzers . | . . . . . . Garrison Access . | . . . . . . Data Cores Recovered . | . . . . . . Used . | . . . . . . Hacking Detections 5 | . 4 . . 1 . Full Trace Events . | . . . . . . Feedback Events . | . . . . . . Feedback Blocked . | . . . . . . Robot Schematics Acquired . | . . . . . . Robots Built . | . . . . . . Authchips . | . . . . . . Time . | . . . . . . Total Robot Build Rating . | . . . . . . Part Schematics Acquired . | . . . . . . Parts Built . | . . . . . . Authchips . | . . . . . . Time . | . . . . . . Total Part Build Rating . | . . . . . . Parts Repaired . | . . . . . . Time . | . . . . . . Parts Recycled . | . . . . . . Recycled Matter . | . . . . . . Retrieved Matter . | . . . . . . Retrieved Components . | . . . . . . Parts Scanalyzed . | . . . . . . Part Schematics Acquired . | . . . . . . Parts Damaged . | . . . . . . Bothacking | -11 -10 -10 -10 -8 -8 ------------ Run | Yrd Mat Min Sub Mat Gar Used RIF Installer 1 | . . . . . 1 Robots Hacked . | . . . . . . Non-combat . | . . . . . . Combat . | . . . . . . Robot Hacks Applied . | . . . . . . Relay Couplers Released . | . . . . . . Fabnet Peak Effective % . | . . . . . . Robots Rewired . | . . . . . . Allies Hacked . | . . . . . . Hacks Repelled . | . . . . . . Allies | -11 -10 -10 -10 -8 -8 -------- Run | Yrd Mat Min Sub Mat Gar Total Allies 2 | . . 2 . . . Largest Group 2 | . . 2 2 . . Highest-Rated Group 38 | . . 38 38 . . Highest-Rated Ally 31 | . . 31 31 . . Total Orders . | . . . . . . Ally Attacks . | . . . . . . Total Damage . | . . . . . . Kills . | . . . . . . Allies Corrupted . | . . . . . . Allies Melted . | . . . . . . Intel | -11 -10 -10 -10 -8 -8 ------- Run | Yrd Mat Min Sub Mat Gar Robot Analysis Total . | . . . . . . Derelict Logs Recovered 3 | . . 2 1 . . Drone Launches . | . . . . . . Drone Recoveries . | . . . . . . Exploration | -11 -10 -10 -10 -8 -8 ------------- Run | Yrd Mat Min Sub Mat Gar Turns Passed 4103 | 145 1690 1265 337 35 631 Spaces Moved 1976 | 93 813 594 187 13 276 Core 76 | 4 . . . . 72 Treads 1454 | 35 421 594 187 13 204 Legs 446 | 54 392 . . . . Wheels . | . . . . . . Hover . | . . . . . . Flight . | . . . . . . Fastest Speed 50 | 50 120 160 160 240 50 Average Speed 154 | 138 140 160 160 240 181 Slowest Speed 240 | 190 160 160 160 240 240 Overloaded Moves . | . . . . . . Propulsion Burnouts . | . . . . . . Robots Hopped . | . . . . . . Cave-ins Triggered . | . . . . . . Exploration Rate (%) 36 | 5 70 98 8 3 37 Regions Visited 5 Branch Regions 2 Pre-discovered Areas . | . . . . . . Known Exits Taken 4 | . 1 1 1 1 . Unknown Exits Taken 1 | 1 . . . . . Scrap Searched 1 | . . 1 . . . Spaces Dug . | . . . . . . Terrain Destroyed . | . . . . . . Melee . | . . . . . . Projectile . | . . . . . . AOE . | . . . . . . Terrain Rammed . | . . . . . . Walls Destroyed . | . . . . . . Machines Disabled . | . . . . . . Actions | -11 -10 -10 -10 -8 -8 --------- Run | Yrd Mat Min Sub Mat Gar Total 2842 | 105 1265 903 211 16 342 Wait 639 | . 334 299 5 . 1 Move 1972 | 92 812 593 186 13 276 Hop . | . . . . . . Pick Up 35 | 2 22 4 4 . 3 Fast Attach 17 | 8 7 1 1 . . Attach 17 | . 5 . . 3 9 Detach 4 | 2 2 . . . . Swap 8 | . 4 . 1 . 3 Drop 29 | . 20 2 6 . 1 Fire 99 | . 53 3 8 . 35 Melee 2 | . . . . . 2 Ram 1 | . . . . . 1 Kick 7 | 1 6 . . . . Crush 1 | . . 1 . . . Escape Stasis 11 | . . . . . 11 Rewire . | . . . . . . Trap . | . . . . . . Miscellaneous . | . . . . . . Route ------- -11/Scrapyard -10/Materials (discovered 3 exits: *Mat / *Min / *Sub) -10/Mines (discovered 3 exits: *Mat x2 / *Sub) -10/Subcaves -8/Materials (discovered 3 exits: Fac x2 / Gar) -8/Garrison History --------- Turn | Location | Event 5 | -11/Scrapyard | Discovered new exit (range 16) 146 | -11/Scrapyard | Entered Materials 279 | -10/Materials | Discovered new exit (range 7) 310 | -10/Materials | Build established: Mutant 871 | -10/Materials | Build established: Scavenger-Mutant 909 | -10/Materials | Discovered new exit (range 16) 1188 | -10/Materials | Core integrity fell below 50% 1230 | -10/Materials | Build established: Mutant 1438 | -10/Materials | Identified exit to Mines 1473 | -10/Materials | Discovered new exit (range 11) 1487 | -10/Materials | Identified exit to Subcaves 1836 | -10/Materials | Entered Mines 1859 | -10/Mines | Learned Materials stockpile data 1884 | -10/Mines | Met a Derelict bent on vengeance 2107 | -10/Mines | Learned location of 1 exit from Materials 2479 | -10/Mines | Discovered exit to Subcaves (range 5) 2522 | -10/Mines | Discovered new exit (range 7) 2532 | -10/Mines | Identified exit to Materials 2679 | -10/Mines | Joined a pair of Derelicts in attacking an 0b10 outpost 2953 | -10/Mines | Discovered exit to Materials (range 6) 3101 | -10/Mines | Entered Subcaves 3101 | -10/Subcaves | Accompanied by 2 allies 3106 | -10/Subcaves | Led the pair of lost Derelicts to an unsafe place 3124 | -10/Subcaves | Discovered new exit (range 10) 3141 | -10/Subcaves | Identified exit to Materials 3162 | -10/Subcaves | A swath of the cavern ceiling suddenly collapsed 3189 | -10/Subcaves | Ambushed by swarm of Subdwellers 3249 | -10/Subcaves | Lost 3 allies 3302 | -10/Subcaves | Learned location of 1 exit from Materials 3395 | -10/Subcaves | Core integrity fell below 20% 3438 | -10/Subcaves | Entered Materials 3438 | -8/Materials | Evolved 4 slots: Utility x3, Weapon x1 3439 | -8/Materials | Identified exit to Factory 3473 | -8/Materials | Identified exit to Garrison 3473 | -8/Materials | Entered Garrison 3514 | -8/Garrison | Installed Relay Interface Framework 3548 | -8/Garrison | Triggered checkpoint 3878 | -8/Garrison | Triggered checkpoint 3879 | -8/Garrison | Build established: Subdweller-Mutant 3972 | -8/Garrison | Triggered checkpoint 4013 | -8/Garrison | Released all parts (7) 4026 | -8/Garrison | Triggered checkpoint 4044 | -8/Garrison | Lost 6 parts (1p2n1u2w) 4047 | -8/Garrison | Core integrity fell below 50% 4078 | -8/Garrison | Core integrity fell below 20% 4104 | -8/Garrison | Destroyed by S-10 Pest with Light Assault Rifle Last Messages --------------- 04074_ Sub. Machine Gun destroyed. 04075_ Acquired 5 matter. 04080_ Critical hit (Burn: +37). 04080_ Adv. Beam Cannon destroyed. 04083_ Slammed into X-57 Shotgunner. 04094_ Triggered Stasis Trap. 04094_ A bubble of rippling energy engulfs the area. 04094_ Field strength at 94. 04094_ Field strength at 88. 04095_ Field strength at 82. 04096_ Field strength at 72. 04097_ Field strength at 66. 04098_ Field strength at 58. 04099_ Field strength at 52. 04100_ Field strength at 43. 04101_ Field strength at 34. 04102_ Field strength at 26. 04103_ Field strength at 12. 04104_ Field strength at 6. Map ----- +----------------------------------------------------+ | ?# #??????????????????# #??????######%* ## ##? | | ?# #################### ######## =[ #? | | ?# # %* | | ?# # ^ | | ?################################# ## #??? ?? | | ???????????????????????????????### ## ## ## | | ???????????????????????????????# = | | ???????????????????????????????# [[/ | | ???????????????????????????????#**!![ | | ???????????????????????????????# /=! | | ???????????????????????????????### ## ^ ## ## | | ???????????????????????########### ##^ #??? ?? | | ???????????????????????# | | ???????????????????????# | | ???????????????????????# ######## #? | | ???????????????????????# #??????## ## ## ##? | | ???????????????????????# #???????? #? #?????? | | ?????????????########### ##??????? #??####?????? | | ?????????????# + # #???????????? | | ???????????### #########s ##??????? #???????????? | | ???????????# ######### #???????? #???????????? | | ???????????# +%[%[%!##xs######### #???????????? | | ???????????# ######=## #???????????? | | ???????????### #????# ## #???????????? | | ?????????????# #????# ## ############???????????? | | ?????????????# #????# ## @#??????????????????????? | | ?????????????#[###### ## #??????????????????????? | | ?????????????#%%[*==" # #??????????????????????? | | ?????????????###[%[##### #??????????????????????? | | ??????????????#"""""#??# #??????????????????????? | | ??????????????#######??# #??????????????????????? | | ???????????????????????# #??????????????????????? | | ???????????????????????# #??????????????????????? | | ???????????????????????# #??????????????????????? | | ???????????????????????# ???????????????????????? | | ??????????????????????? ???????????????????????? | | ??????????????????????? ???????????????????????? | | ???????????????????????###???????????????????????? | | ?????????????????????????????????????????????????? | | ?????????????????????????????????????????????????? | | ?????????????????????????????????????????????????? | | ?????????????????????????????????????????????????? | | ?????????????????????????????????????????????????? | | ?????????????????????????????????????????????????? | | ?????????????????????????????????????????????????? | | ?????????????????????????????????????????????????? | | ?????????????????????????????????????????????????? | | ?????????????????????????????????????????????????? | | ?????????????????????????????????????????????????? | | ?????????????????????????????????????????????????? | +----------------------------------------------------+ Best States ------------- Heat Dissipation 35 Energy Generation 14 Energy Capacity 265 Matter Stores 400 Matter Capacity 400 Sight Range 21 Terrain Scan Density 10 Armor Coverage 800 Evasion (%) 55 Armor Integrity Analysis 30 Recoil Reduction 2 Item Schematics ----------------- None Robot Schematics ------------------ None Fabricated ------------ Nothing Alien Tech Used ----------------- None Achievements -------------- None Challenges ------------ None Game ------ Seed BackupWardroneCalibrator Manual? 0 Play Time 00:37:18 Cumulative 10.4 hours Start 2024.04.16 @ 15:54:09 End 2024.04.16 @ 16:31:13 Sessions 1 Manual Loads 0 Difficulty Rogue Special Mode None Game No. 2 Rogue 1 Adventurer 1 Explorer 0 Win Type - Total 0 Types 0/0/0/0/0/0/0/0/0 Lore% 11 Gallery% 9 Achievement% 14 Wizard Run 0 Options --------- Layout 1 ASCII 0 Keyboard 0 Movement Mouse Keybinds 0 Fullscreen 1 Font 36/Smallcaps Map View 50x40 Zoom Use 0% Tactical HUD 1 Map Filters NONE Filters NONE Steam 0 RUN: 1cb32f19-a4bd-4486-822e-c9664dafefca